bitfinex/quotes_BTCUSD_20230831
["timestamp","ask_amount","ask_price","bid_price","bid_amount"]
[1693519077510,0.23020415,26043.0,26040.0,0.825321]
[1693519077727,0.2501743,26043.0,26040.0,0.825321]
[1693519077936,0.2501743,26043.0,26040.0,0.831321]
[1693519078331,0.26174844,26042.0,26040.0,0.826321]
[1693519078538,0.26174844,26042.0,26040.0,0.832321]
[1693519078777,0.26174844,26042.0,26041.0,0.1183]
[1693519080309,0.35382274,26042.0,26041.0,0.1183]
[1693519080708,0.49195259,26042.0,26041.0,0.1243]
[1693519080913,0.57287714,26042.0,26041.0,0.1183]
[1693519081340,0.59587714,26042.0,26041.0,0.1213]
[1693519081566,0.57287714,26042.0,26041.0,0.1183]
[1693519081768,0.57287714,26042.0,26041.0,0.1213]
[1693519081769,0.50795259,26042.0,26041.0,0.1213]
[1693519081944,0.42187829,26042.0,26041.0,0.003]
[1693519082146,0.40587829,26042.0,26040.0,0.2493]
[1693519082353,0.0920544,26041.0,26040.0,0.825335]
[1693519083515,0.0920544,26041.0,26040.0,0.831335]
[1693519084291,0.23018425,26041.0,26040.0,0.834335]
[1693519084474,0.0920544,26041.0,26040.0,0.834335]
[1693519084671,0.23018425,26041.0,26040.0,0.009]
[1693519084895,0.13812985,26041.0,26040.0,0.009]
[1693519087871,0.13812985,26041.0,26039.0,1.270385]
[1693519088072,0.0920571,26040.0,26039.0,1.270385]
[1693519090318,0.0920571,26040.0,26039.0,1.276385]
[1693519090453,0.0920571,26040.0,26039.0,1.279385]
[1693519090658,0.0920571,26040.0,26039.0,0.703342]
[1693519093420,0.0920571,26040.0,26039.0,1.2794]
[1693519098744,0.0922301,26040.0,26039.0,1.2794]
[1693519101680,0.0922301,26040.0,26039.0,1.2764]
[1693519101983,0.1012301,26040.0,26039.0,1.2764]
[1693519102483,0.0922301,26040.0,26039.0,1.2764]
[1693519102686,0.1012301,26040.0,26039.0,1.2764]
[1693519103292,0.23935995,26040.0,26039.0,1.2704]
[1693519103694,0.24535995,26040.0,26039.0,1.2704]
[1693519104561,0.15330285,26040.0,26039.0,1.2704]
[1693519104765,0.15330285,26040.0,26039.0,0.694342]
[1693519105310,0.40083784,26040.0,26039.0,0.1183]
[1693519106994,0.58501097,26040.0,26039.0,0.1183]
[1693519109531,0.44688112,26040.0,26039.0,0.1183]
[1693519110007,0.69558247,26040.0,26038.0,0.694364]
[1693519110290,0.23029418,26039.0,26038.0,0.694364]
[1693519110594,0.34603671,26039.0,26037.0,0.00099451]
[1693519110772,0.21997573,26038.0,26036.0,0.581113]
[1693519110973,0.1381817,26037.0,26036.0,0.581113]
[1693519111612,0.1381817,26037.0,26036.0,0.699413]
[1693519111943,0.39822658,26037.0,26036.0,0.728413]
[1693519112693,0.49034325,26037.0,26036.0,0.728413]
[1693519113295,0.40022658,26037.0,26036.0,0.760413]
[1693519113508,0.49234302,26037.0,26036.0,0.760413]
[1693519113656,0.40022658,26037.0,26036.0,0.760413]
[1693519116187,0.39822658,26037.0,26036.0,0.728413]
[1693519116380,0.41722658,26037.0,26036.0,0.729413]
[1693519116635,0.41622658,26037.0,26036.0,0.700413]
[1693519116926,0.41522658,26037.0,26036.0,0.1243]
[1693519117129,0.43422658,26037.0,26036.0,0.1253]
[1693519117337,0.41622658,26037.0,26036.0,0.1243]
[1693519118102,0.43422658,26037.0,26036.0,0.1253]
[1693519118304,0.1751817,26037.0,26036.0,0.1253]
[1693519120638,0.1751817,26037.0,26036.0,0.701425]
[1693519123379,0.44170745,26037.0,26036.0,0.002]
[1693519123578,0.44170745,26037.0,26036.0,0.007]
[1693519123800,0.62595134,26037.0,26036.0,0.007]
[1693519124327,0.62595134,26037.0,26036.0,0.002]
[1693519124528,0.94557986,26037.0,26036.0,0.002]
[1693519124902,1.35157986,26037.0,26036.0,0.002]
[1693519125102,1.92768286,26037.0,26036.0,0.002]
[1693519125543,1.60805434,26037.0,26036.0,0.002]
[1693519126679,1.46987264,26037.0,26036.0,0.002]
[1693519126883,1.5078217,26037.0,26036.0,0.002]
[1693519127102,1.89490848,26037.0,26036.0,0.002]
[1693519127469,2.12521335,26037.0,26036.0,0.002]
[1693519127624,2.2316793,26037.0,26036.0,0.002]
[1693519127825,1.94096946,26037.0,26036.0,0.002]
[1693519128268,2.25054671,26037.0,26036.0,0.002]
[1693519128603,2.51738421,26037.0,26036.0,0.002]
[1693519128931,2.56004671,26037.0,26036.0,0.002]
[1693519129167,2.32974184,26037.0,26036.0,0.002]
[1693519129363,2.64794911,26037.0,26036.0,0.002]
[1693519129823,3.22405211,26037.0,26036.0,0.002]
[1693519130023,3.20605211,26037.0,26036.0,0.001]
[1693519130167,3.24305211,26037.0,26036.0,0.004]
[1693519130367,3.22405211,26037.0,26036.0,0.003]
[1693519130712,3.26105211,26037.0,26036.0,0.006]
[1693519135897,3.28105211,26037.0,26036.0,0.006]
[1693519137344,3.58105211,26037.0,26036.0,0.006]
[1693519143502,3.64287191,26037.0,26036.0,0.006]
[1693519143727,3.58105211,26037.0,26036.0,0.006]
[1693519144280,3.69935211,26037.0,26036.0,0.006]
[1693519144484,3.76116171,26037.0,26036.0,0.006]
[1693519145343,3.76383471,26037.0,26036.0,0.006]
[1693519146619,3.70202511,26037.0,26036.0,0.006]
[1693519149326,3.71202511,26037.0,26036.0,0.006]
[1693519149535,3.77384307,26037.0,26036.0,0.006]
[1693519150881,3.77539221,26037.0,26036.0,0.006]
[1693519152789,3.73839221,26037.0,26036.0,0.003]
[1693519152994,0.426,26031.0,26030.0,0.005]
[1693519153216,0.58083471,26031.0,26030.0,0.005]
[1693519153420,0.426,26031.0,26030.0,0.005]
[1693519154221,0.434,26031.0,26030.0,0.006]
[1693519154848,0.444,26031.0,26030.0,0.007]
[1693519157046,0.444,26031.0,26030.0,0.1253]
[1693519169549,0.53608654,26031.0,26030.0,0.701558]
[1693519169954,0.68554599,26031.0,26030.0,0.701558]
[1693519170489,0.66554599,26031.0,26030.0,0.701558]
[1693519170710,0.68554599,26031.0,26030.0,0.701558]
[1693519171326,0.53608654,26031.0,26030.0,0.701558]
[1693519173703,0.67421636,26031.0,26030.0,0.701558]
[1693519175667,0.58212982,26031.0,26030.0,0.701558]
[1693519176292,0.67436396,26031.0,26030.0,1.277816]
[1693519176493,0.58212982,26031.0,26030.0,1.277816]
[1693519177540,0.15612982,26031.0,26030.0,1.277816]
[1693519177742,0.018,26031.0,26030.0,2.52007181]
[1693519177916,0.09224326,26034.0,26033.0,0.005]
[1693519178256,0.32230291,26035.0,26033.0,3.38634178]
[1693519178257,0.23037308,26035.0,26033.0,3.38634178]
[1693519178590,0.13812982,26036.0,26034.0,0.57913678]
[1693519178789,1.010073,26037.0,26035.0,2.541188]
[1693519178990,1.010073,26037.0,26036.0,0.58538678]
[1693519178991,0.012673,26037.0,26036.0,0.58538678]
[1693519179211,0.012673,26037.0,26036.0,2.47051281]
[1693519179410,0.13812982,26039.0,26036.0,2.73895281]
[1693519179596,0.32230291,26040.0,26038.0,0.1183]
[1693519179842,0.13812982,26040.0,26039.0,1.846474]
[1693519180043,0.13812982,26040.0,26039.0,1.927894]
[1693519180353,0.13812982,26040.0,26039.0,1.930234]
[1693519180564,0.13812982,26042.0,26039.0,2.46502078]
[1693519180765,0.32230291,26044.0,26041.0,0.1183]
[1693519180971,0.32230291,26045.0,26043.0,0.08]
[1693519181181,0.32230291,26046.0,26044.0,1.59898278]
[1693519181382,0.32230291,26046.0,26045.0,0.2366]
[1693519181584,0.32230291,26046.0,26045.0,2.67714478]
[1693519181585,0.13812982,26046.0,26045.0,2.67714478]
[1693519181788,0.02,26048.0,26045.0,2.67990478]
[1693519181995,0.02,26048.0,26046.0,0.38708678]
[1693519182208,0.02,26048.0,26047.0,2.421828]
[1693519182360,0.02,26048.0,26047.0,3.08071478]
[1693519182537,0.02,26048.0,26047.0,2.93635478]
[1693519182748,0.02,26048.0,26047.0,2.93251478]
[1693519182946,0.02,26048.0,26047.0,3.35257478]
[1693519183176,0.02,26048.0,26047.0,3.35203478]
[1693519183411,0.02,26048.0,26047.0,3.49051478]
[1693519183703,0.021,26048.0,26047.0,3.35485478]
[1693519183993,0.018,26048.0,26047.0,3.39275478]
[1693519184197,0.018,26048.0,26047.0,3.39089478]
[1693519184354,0.018,26048.0,26047.0,3.39155478]
[1693519184973,0.018,26048.0,26047.0,3.39107478]
[1693519185184,0.021,26048.0,26047.0,3.42879478]
[1693519185424,0.021,26048.0,26047.0,3.42885478]
[1693519185624,0.021,26048.0,26047.0,3.42873478]
[1693519185902,0.021,26048.0,26047.0,3.42597478]
[1693519186086,0.021,26048.0,26047.0,3.42477478]
[1693519186288,0.021,26048.0,26047.0,3.41727478]
[1693519186461,0.021,26048.0,26047.0,3.41319478]
[1693519186657,0.021,26048.0,26047.0,3.41493478]
[1693519186858,0.021,26048.0,26047.0,3.41439478]
[1693519187063,0.021,26048.0,26047.0,3.41463478]
[1693519187587,0.021,26048.0,26047.0,3.41253478]
[1693519187762,0.021,26048.0,26047.0,3.40695478]
[1693519187963,0.021,26048.0,26047.0,3.40809478]
[1693519188167,0.021,26048.0,26047.0,3.41349478]
[1693519188363,0.021,26048.0,26047.0,3.42093478]
[1693519188563,0.021,26048.0,26047.0,3.42195478]
[1693519188766,0.021,26048.0,26047.0,3.42189478]
[1693519188991,0.021,26048.0,26047.0,3.42159478]
[1693519189330,0.021,26048.0,26047.0,3.42015478]
[1693519189510,0.021,26048.0,26047.0,3.41925478]
[1693519189765,0.016,26048.0,26047.0,3.41877478]
[1693519189941,0.016,26048.0,26047.0,3.41931478]
[1693519190161,0.016,26048.0,26047.0,3.41871478]
[1693519190318,0.016,26048.0,26047.0,3.41853478]
[1693519190533,0.016,26048.0,26047.0,3.44835512]
[1693519190738,0.016,26048.0,26047.0,3.45033512]
[1693519190949,0.016,26048.0,26047.0,3.45093512]
[1693519191148,0.016,26048.0,26047.0,3.45081512]
[1693519191330,0.016,26048.0,26047.0,3.45033512]
[1693519191539,0.016,26048.0,26047.0,3.44991512]
[1693519191876,0.016,26048.0,26047.0,3.44811512]
[1693519192115,0.016,26048.0,26047.0,3.44295512]
[1693519192292,0.016,26048.0,26047.0,3.44055512]
[1693519192490,0.016,26048.0,26047.0,3.44043512]
[1693519192715,0.016,26048.0,26047.0,3.44049512]
[1693519192849,0.016,26048.0,26047.0,3.32031512]
[1693519193032,0.016,26048.0,26047.0,3.43995512]
[1693519193254,0.016,26048.0,26047.0,3.43359512]
[1693519193490,0.016,26048.0,26047.0,3.43581512]
[1693519193692,0.016,26048.0,26047.0,3.43551512]
[1693519193905,0.016,26048.0,26047.0,3.43569512]
[1693519194292,0.016,26048.0,26047.0,3.44007512]
[1693519194495,0.016,26048.0,26047.0,3.44055512]
[1693519194719,0.016,26048.0,26047.0,3.44733512]
[1693519194892,0.016,26048.0,26047.0,3.32763512]
[1693519195093,0.016,26048.0,26047.0,3.44829512]
[1693519195299,0.016,26048.0,26047.0,3.44709512]
[1693519195494,0.016,26048.0,26047.0,3.44697512]
[1693519195708,0.016,26048.0,26047.0,3.44673512]
[1693519195852,0.016,26048.0,26047.0,3.45543512]
[1693519196057,0.016,26048.0,26047.0,3.45603512]
[1693519196456,0.016,26048.0,26047.0,3.45585512]
[1693519196656,0.016,26048.0,26047.0,3.45669512]
[1693519196888,0.016,26048.0,26047.0,3.46113512]
[1693519197094,0.016,26048.0,26047.0,3.45627512]
[1693519197290,0.016,26048.0,26047.0,3.45531512]
[1693519197455,0.016,26048.0,26047.0,3.45513512]
[1693519197655,0.016,26048.0,26047.0,3.45489512]
[1693519197858,0.016,26048.0,26047.0,3.45261512]
[1693519198060,0.016,26048.0,26047.0,3.45537512]
[1693519198260,0.016,26048.0,26047.0,3.45957512]
[1693519198462,0.016,26048.0,26047.0,3.59307512]
[1693519198817,0.016,26048.0,26047.0,3.46029512]
[1693519198992,0.016,26048.0,26047.0,3.45663512]
[1693519199176,0.016,26048.0,26047.0,3.43615512]
[1693519199377,0.016,26048.0,26047.0,3.44071512]
[1693519199553,0.016,26048.0,26047.0,3.43933512]
[1693519199771,0.016,26048.0,26047.0,3.44143512]
[1693519199971,0.016,26048.0,26047.0,3.43675512]
[1693519200170,0.016,26048.0,26047.0,3.43759512]
[1693519200371,0.67123904,26048.0,26047.0,3.60379512]
[1693519200608,0.67123904,26048.0,26047.0,3.58591512]
[1693519200814,0.67123904,26048.0,26047.0,3.58531512]
[1693519201044,0.67123904,26048.0,26047.0,3.57835512]
[1693519201250,0.67123904,26048.0,26047.0,3.43410194]
[1693519201626,0.67123904,26048.0,26047.0,3.56526194]
[1693519201813,0.67123904,26048.0,26047.0,3.42516194]
[1693519202017,0.67123904,26048.0,26047.0,3.42834194]
[1693519202340,0.67123904,26048.0,26047.0,3.40852194]
[1693519202537,0.67123904,26048.0,26047.0,3.41976194]
[1693519202767,0.67123904,26048.0,26047.0,3.42642194]
[1693519202974,0.67123904,26048.0,26047.0,3.42750194]
[1693519203175,0.67123904,26048.0,26047.0,3.60198194]
[1693519203380,0.67123904,26048.0,26047.0,3.60138194]
[1693519203581,0.67123904,26048.0,26047.0,3.59610194]
[1693519203788,0.67123904,26048.0,26047.0,3.61062194]
[1693519204028,0.67123904,26048.0,26047.0,3.57426194]
[1693519204251,0.67123904,26048.0,26047.0,3.57498194]
[1693519204402,0.67123904,26048.0,26047.0,3.57618194]
[1693519204612,0.67123904,26048.0,26047.0,3.60246194]
[1693519204813,0.67123904,26048.0,26047.0,3.59874194]
[1693519205053,0.67123904,26048.0,26047.0,3.60270194]
[1693519205256,0.67123904,26048.0,26047.0,3.60438194]
[1693519205462,0.67123904,26048.0,26047.0,3.59814194]
[1693519205622,0.67123904,26048.0,26047.0,3.59046194]
[1693519205817,0.67123904,26048.0,26047.0,3.59454194]
[1693519206022,0.67123904,26048.0,26047.0,3.59370194]
[1693519206220,0.67123904,26048.0,26047.0,4.01578194]
[1693519206433,0.67123904,26048.0,26047.0,4.17736194]
[1693519206644,0.67123904,26048.0,26047.0,4.16068194]
[1693519206857,0.67123904,26048.0,26047.0,4.16812194]
[1693519207067,0.67123904,26048.0,26047.0,4.17016194]
[1693519207274,0.66823904,26048.0,26047.0,4.11696194]
[1693519207475,0.66823904,26048.0,26047.0,4.11300194]
[1693519207682,0.66623904,26048.0,26047.0,4.11148194]
[1693519207891,0.66623904,26048.0,26047.0,4.14764194]
[1693519208099,0.66523904,26048.0,26047.0,4.11324194]
[1693519208301,0.66623904,26048.0,26047.0,4.14796194]
[1693519208511,0.66623904,26048.0,26047.0,4.02378194]
[1693519208748,0.66623904,26048.0,26047.0,4.00662194]
[1693519208949,0.66623904,26048.0,26047.0,4.01382194]
[1693519209154,0.66623904,26048.0,26047.0,4.01346194]
[1693519209357,0.66623904,26048.0,26047.0,4.00926194]
[1693519209561,0.66623904,26048.0,26047.0,4.04070194]
[1693519209823,0.66623904,26048.0,26047.0,4.04226194]
[1693519210055,0.66623904,26048.0,26047.0,4.04190194]
[1693519210250,0.66623904,26048.0,26047.0,4.04118194]
[1693519210471,0.66623904,26048.0,26047.0,4.03266194]
[1693519210671,0.66623904,26048.0,26047.0,4.03074194]
[1693519210998,0.66623904,26048.0,26047.0,4.05654194]
[1693519211216,0.66623904,26048.0,26047.0,4.04586194]
[1693519211521,0.66623904,26048.0,26047.0,4.04286194]
[1693519211735,0.66623904,26048.0,26047.0,4.08802194]
[1693519211914,0.66623904,26048.0,26047.0,4.07902194]
[1693519212114,0.66623904,26048.0,26047.0,4.07998194]
[1693519212316,0.66623904,26048.0,26047.0,4.07002194]
[1693519212519,0.66623904,26048.0,26047.0,4.06954194]
[1693519212817,0.66623904,26048.0,26047.0,4.07026194]
[1693519213031,0.66623904,26048.0,26047.0,4.07866194]
[1693519213211,0.66623904,26048.0,26047.0,4.08370194]
[1693519213411,0.66623904,26048.0,26047.0,4.08226194]
[1693519213588,0.66623904,26048.0,26047.0,4.08190194]
[1693519213787,0.66623904,26048.0,26047.0,4.08070194]
[1693519213970,0.66623904,26048.0,26047.0,4.08022194]
[1693519214374,0.66623904,26048.0,26047.0,4.02638194]
[1693519214508,0.66623904,26048.0,26047.0,4.02278194]
[1693519214705,0.66623904,26048.0,26047.0,4.02134194]
[1693519214906,0.66623904,26048.0,26047.0,4.01990194]
[1693519215112,0.66623904,26048.0,26047.0,4.01282194]
[1693519215375,0.66623904,26048.0,26047.0,4.01234194]
[1693519215577,0.66623904,26048.0,26047.0,4.02374194]
[1693519215781,0.66623904,26048.0,26047.0,4.02122194]
[1693519215984,0.66623904,26048.0,26047.0,4.02302194]
[1693519216223,0.66623904,26048.0,26047.0,4.02278194]
[1693519216430,0.66623904,26048.0,26047.0,4.02326194]
[1693519216635,0.66623904,26048.0,26047.0,4.02410194]
[1693519216841,0.66623904,26048.0,26047.0,4.02374194]
[1693519217041,0.66623904,26048.0,26047.0,4.01966194]
[1693519217255,0.66623904,26048.0,26047.0,4.01726194]
[1693519217473,0.66623904,26048.0,26047.0,4.01690194]
[1693519217677,0.66623904,26048.0,26047.0,4.01486194]
[1693519217844,0.66623904,26048.0,26047.0,4.00722194]
[1693519218052,0.66623904,26048.0,26047.0,3.57582194]
[1693519218231,0.66623904,26048.0,26047.0,3.42390194]
[1693519218570,0.66623904,26048.0,26047.0,3.42252194]
[1693519218709,0.66623904,26048.0,26047.0,3.42180194]
[1693519218913,0.66623904,26048.0,26047.0,3.40060194]
[1693519219111,0.66623904,26048.0,26047.0,3.42024194]
[1693519219320,0.66623904,26048.0,26047.0,3.41184194]
[1693519219517,0.66623904,26048.0,26047.0,3.41244194]
[1693519219722,0.66623904,26048.0,26047.0,3.40314194]
[1693519219978,0.66623904,26048.0,26047.0,3.40554194]
[1693519220183,0.66623904,26048.0,26047.0,2.82815994]
[1693519220387,0.66623904,26048.0,26047.0,2.81843994]
[1693519220588,0.66623904,26048.0,26047.0,2.81657994]
[1693519220741,0.66623904,26048.0,26047.0,2.81339994]
[1693519220946,0.66623904,26048.0,26047.0,2.81129994]
[1693519221161,0.66623904,26048.0,26047.0,2.10738794]
[1693519221359,0.66623904,26048.0,26047.0,2.0769076]
[1693519221562,0.89243539,26048.0,26047.0,0.4923]
[1693519221806,0.89243539,26048.0,26047.0,0.1923]
[1693519222807,1.46829439,26048.0,26047.0,0.074]
[1693519223011,1.46829439,26048.0,26047.0,0.05794]
[1693519223181,2.02678485,26048.0,26047.0,0.05794]
[1693519223386,1.83695704,26048.0,26047.0,0.02094]
[1693519223858,2.39281604,26048.0,26047.0,0.007]
[1693519224059,2.41281604,26048.0,26047.0,0.009]
[1693519224267,3.16882643,26048.0,26047.0,0.002]
[1693519224442,3.16882643,26048.0,26042.0,0.0009893]
[1693519224443,1.171869,26045.0,26042.0,0.0009893]
[1693519224694,0.15483471,26044.0,26042.0,0.0009893]
[1693519225107,1.171869,26045.0,26041.0,0.03099091]
[1693519225311,0.738557,26044.0,26041.0,0.03099091]
[1693519225477,0.16076187,26043.0,26040.0,0.153733]
[1693519225653,0.575992,26042.0,26040.0,0.153733]
[1693519225879,1.151984,26042.0,26038.0,0.00098414]
[1693519226084,1.46941871,26042.0,26038.0,0.00098414]
[1693519226642,0.26497363,26041.0,26038.0,0.00098414]
[1693519226889,0.65920458,26041.0,26038.0,0.00098414]
[1693519227093,1.17402441,26041.0,26038.0,0.00098414]
[1693519227299,0.02,26040.0,26038.0,0.00098414]
[1693519227754,0.596038,26040.0,26037.0,0.1183]
[1693519227958,1.337476,26040.0,26037.0,0.1183]
[1693519228166,1.5985884,26040.0,26038.0,0.002]
[1693519228548,1.5985884,26040.0,26034.0,1.27161772]
[1693519228762,0.15483471,26039.0,26034.0,0.69545272]
[1693519228973,0.741481,26038.0,26034.0,0.11928772]
[1693519229177,0.89631571,26038.0,26037.0,0.001]
[1693519229394,1.12869874,26038.0,26037.0,0.001]
[1693519230500,1.12869874,26038.0,26034.0,0.30098772]
[1693519230711,0.02,26036.0,26034.0,0.00098772]
[1693519230921,0.75097271,26036.0,26034.0,0.00198772]
[1693519231128,0.30743947,26035.0,26034.0,0.001]
[1693519231339,1.270594,26035.0,26030.0,0.00098799]
[1693519231544,0.15483471,26034.0,26030.0,0.57724199]
[1693519231753,0.30923471,26034.0,26030.0,0.57724199]
[1693519231959,0.25530291,26033.0,26030.0,0.57724199]
[1693519232360,0.27530291,26033.0,26030.0,0.57724199]
[1693519233170,1.0368281,26033.0,26030.0,0.00398799]
[1693519234002,1.0498281,26033.0,26030.0,0.00498799]
[1693519234486,1.0368281,26033.0,26030.0,0.00098799]
[1693519234686,0.2236677,26032.0,26030.0,0.00398799]
[1693519234887,0.2236677,26032.0,26030.0,0.00598799]
[1693519235292,0.2236677,26032.0,26030.0,0.005]
[1693519235449,0.44137369,26032.0,26030.0,0.003]
[1693519235649,0.2236677,26032.0,26030.0,0.003]
[1693519235947,0.1713557,26032.0,26029.0,0.576267]
[1693519236167,0.1713557,26032.0,26030.0,0.001]
[1693519236373,0.1923557,26032.0,26030.0,0.001]
[1693519237403,0.21679005,26031.0,26030.0,0.002]
[1693519238241,0.92485521,26031.0,26030.0,0.001]
[1693519238453,0.92485521,26031.0,26027.0,0.576315]
[1693519238454,0.02,26030.0,26027.0,0.576315]
[1693519238657,0.1183,26029.0,26027.0,0.576315]
[1693519238858,0.12,26027.0,26026.0,0.00098695]
[1693519239089,0.2383,26027.0,26026.0,0.00098695]
[1693519239291,0.02,26024.0,26023.0,0.576401]
[1693519239502,0.17483471,26024.0,26023.0,1.152805]
[1693519239705,0.02,26024.0,26023.0,1.152805]
[1693519240118,0.02,26024.0,26022.0,1.152841]
[1693519240323,0.02,26024.0,26022.0,0.57642]
[1693519241462,0.02,26024.0,26022.0,0.57942]
[1693519241463,0.052,26024.0,26022.0,0.57942]
[1693519241695,0.065,26024.0,26022.0,0.58142]
[1693519242901,0.065,26024.0,26022.0,1.157855]
[1693519243988,0.065,26024.0,26023.0,0.45188678]
[1693519243989,0.045,26024.0,26023.0,0.45188678]
[1693519244191,0.9974,26034.0,26024.0,0.446]
[1693519244395,0.9974,26034.0,26027.0,1.728972]
[1693519244589,1.0174,26034.0,26028.0,0.72553781]
[1693519244805,1.0174,26034.0,26029.0,1.728786]
[1693519245084,0.2451617,26034.0,26031.0,0.694531]
[1693519245359,0.02,26034.0,26031.0,1.846993]
[1693519245560,0.03,26034.0,26031.0,1.912813]
[1693519245761,0.02,26034.0,26031.0,1.913053]
[1693519245899,0.02,26034.0,26031.0,1.911793]
[1693519246094,0.031,26034.0,26031.0,1.846993]
[1693519246322,0.19798823,26033.0,26031.0,0.576231]
[1693519246906,0.19798823,26033.0,26031.0,1.152467]
[1693519251829,0.21798823,26033.0,26031.0,1.152467]
[1693519252881,0.21798823,26033.0,26031.0,1.728703]
[1693519253319,0.19798823,26033.0,26031.0,1.728703]
[1693519253518,0.21798823,26033.0,26031.0,1.728703]
[1693519254109,0.20949174,26032.0,26031.0,1.152467]
[1693519254287,0.20949174,26032.0,26031.0,0.576231]
[1693519255360,0.20949174,26032.0,26031.0,0.589231]
[1693519255538,0.20949174,26032.0,26031.0,0.598231]
[1693519256589,0.20949174,26032.0,26031.0,0.576231]
[1693519256940,0.20949174,26032.0,26030.0,1.152485]
[1693519256941,0.22949174,26032.0,26030.0,1.152485]
[1693519257627,0.22949174,26032.0,26030.0,0.576238]
[1693519257830,0.19856429,26031.0,26030.0,0.576238]
[1693519258417,0.19856429,26031.0,26029.0,1.15255]
[1693519261206,0.19856429,26031.0,26029.0,1.27085]
[1693519261415,0.426,26033.0,26029.0,1.27085]
[1693519261816,0.5881,26033.0,26029.0,1.27085]
[1693519262496,0.5881,26033.0,26029.0,1.27185]
[1693519263124,0.5991,26033.0,26029.0,1.27285]
[1693519263336,0.27353077,26032.0,26029.0,1.27285]
[1693519264446,0.12,26031.0,26029.0,0.695575]
[1693519265101,0.12,26031.0,26029.0,0.694575]
[1693519265729,0.12,26031.0,26029.0,0.1183]
[1693519265944,0.1,26031.0,26029.0,0.1183]
[1693519266145,0.23992531,26030.0,26029.0,0.1183]
[1693519267336,0.23992531,26030.0,26028.0,1.152577]
[1693519267337,0.16872633,26030.0,26028.0,0.576284]
[1693519267579,0.79308678,26029.0,26027.0,0.00099686]
[1693519267783,1.52421849,26029.0,26027.0,0.00099686]
[1693519267936,1.36938378,26029.0,26027.0,0.00099686]
[1693519268290,1.36938378,26029.0,26024.0,1.271055]
[1693519268497,0.406,26027.0,26024.0,1.271055]
[1693519268699,0.79308678,26027.0,26024.0,1.271055]
[1693519269540,0.79308678,26027.0,26024.0,1.274055]
[1693519270595,0.79308678,26027.0,26024.0,1.271055]
[1693519271011,0.80408678,26027.0,26024.0,1.272055]
[1693519271221,0.19722422,26026.0,26024.0,1.273055]
[1693519272276,0.19722422,26026.0,26024.0,1.271055]
[1693519272454,0.21122422,26026.0,26024.0,1.271055]
[1693519273932,0.24420704,26025.0,26024.0,1.271055]
[1693519275130,0.24420704,26025.0,26024.0,1.284055]
[1693519275360,0.24420704,26025.0,26024.0,1.271055]
[1693519275557,0.24420704,26025.0,26024.0,1.307055]
[1693519275735,0.24520704,26025.0,26024.0,1.344055]
[1693519277264,0.24520704,26025.0,26024.0,1.225755]
[1693519278068,0.49188188,26025.0,26024.0,0.073]
[1693519278806,0.23665938,26025.0,26024.0,0.073]
[1693519279218,0.50478956,26025.0,26024.0,0.073]
[1693519280240,0.23665938,26025.0,26024.0,0.073]
[1693519280351,0.51571765,26025.0,26024.0,0.037]
[1693519280560,0.51471765,26025.0,26022.0,1.15386605]
[1693519280803,0.51871765,26025.0,26024.0,0.001]
[1693519281230,0.52871765,26025.0,26024.0,0.001]
[1693519281430,0.24965938,26025.0,26024.0,0.003]
[1693519281606,0.23965938,26025.0,26024.0,0.002]
[1693519281810,0.50024182,26025.0,26024.0,0.005]
[1693519282016,0.44692048,26025.0,26024.0,0.003]
[1693519282236,0.45092048,26025.0,26024.0,0.006]
[1693519282435,0.43792048,26025.0,26024.0,0.003]
[1693519282971,0.23965938,26025.0,26024.0,0.003]
[1693519283173,0.47049856,26025.0,26024.0,0.003]
[1693519283783,0.48349856,26025.0,26024.0,0.006]
[1693519283986,0.17265938,26025.0,26024.0,0.006]
[1693519284223,1.08163732,26025.0,26024.0,0.006]
[1693519284425,1.04163732,26025.0,26024.0,0.006]
[1693519284634,0.46526932,26025.0,26024.0,0.006]
[1693519284836,2.83315016,26025.0,26024.0,0.006]
[1693519286411,2.71749078,26025.0,26024.0,0.006]
[1693519286623,0.33129294,26025.0,26024.0,0.006]
[1693519287030,0.33129294,26025.0,26024.0,0.582391]
[1693519287284,0.33129294,26025.0,26024.0,0.006]
[1693519287685,0.077,26025.0,26024.0,0.006]
[1693519291702,0.2623977,26025.0,26024.0,0.006]
[1693519293893,0.3806977,26025.0,26024.0,0.006]
[1693519295244,0.3606977,26025.0,26024.0,0.006]
[1693519303329,2.30652048,26025.0,26024.0,0.006]
[1693519308940,2.88288848,26025.0,26024.0,0.006]
[1693519311376,2.97430432,26025.0,26024.0,0.006]
[1693519312038,2.88288848,26025.0,26024.0,0.006]
[1693519312440,2.97430432,26025.0,26024.0,0.006]
[1693519313399,2.53579657,26025.0,26024.0,0.006]
[1693519314405,2.44364424,26025.0,26024.0,0.006]
[1693519314587,2.53580644,26025.0,26024.0,0.006]
[1693519315327,2.44364424,26025.0,26024.0,0.006]
[1693519315754,3.31866678,26025.0,26024.0,0.006]
[1693519315977,3.48154302,26025.0,26024.0,0.006]
[1693519317406,3.53219948,26025.0,26024.0,0.006]
[1693519317584,3.55219948,26025.0,26024.0,0.006]
[1693519318356,3.5979074,26025.0,26024.0,0.006]
[1693519318566,3.36936779,26025.0,26024.0,0.006]
[1693519325457,3.62769413,26025.0,26024.0,0.006]
[1693519326300,3.64779313,26025.0,26024.0,0.006]
[1693519326876,3.70433541,26025.0,26024.0,0.006]
[1693519327073,3.70033541,26025.0,26024.0,0.003]
[1693519327280,0.03582285,26021.0,26020.0,0.020099]
[1693519327505,3.15773384,26021.0,26020.0,0.020099]
[1693519327705,3.2083903,26021.0,26020.0,0.020099]
[1693519328694,3.49216725,26021.0,26020.0,0.023099]
[1693519328976,3.52916725,26021.0,26020.0,0.026099]
[1693519329371,3.29861549,26021.0,26020.0,0.026099]
[1693519329574,3.05183854,26021.0,26020.0,0.026099]
[1693519329999,1.52561579,26021.0,26020.0,0.026099]
[1693519330198,1.75616755,26021.0,26020.0,0.026099]
[1693519330474,1.52561579,26021.0,26020.0,0.026099]
[1693519330719,1.64057113,26021.0,26020.0,0.026099]